bitfinex/quotes_SOLUSD_20230104
["timestamp","ask_amount","ask_price","bid_price","bid_amount"]
[1672829581413,24.7968,13.657,13.645,30.0]
[1672829581623,24.7968,13.657,13.646,50.0]
[1672829581848,24.7968,13.657,13.647,55.01]
[1672829582066,24.7968,13.657,13.647,143.3301678]
[1672829582269,24.7968,13.657,13.648,106.98899095]
[1672829582484,116.587,13.658,13.65,30.0]
[1672829582792,46.5126,13.66,13.651,54.99]
[1672829583005,46.5126,13.66,13.651,110.00502204]
[1672829583216,30.0,13.659,13.648,30.0]
[1672829583410,84.96,13.659,13.649,30.0]
[1672829584256,30.0,13.659,13.649,30.0]
[1672829584563,84.96,13.659,13.649,30.0]
[1672829585011,30.0,13.658,13.649,30.0]
[1672829585315,30.0,13.656,13.649,30.0]
[1672829587302,30.0,13.658,13.649,30.0]
[1672829587843,30.0,13.659,13.649,30.0]
[1672829588073,30.0,13.659,13.649,29.5]
[1672829588237,46.5126,13.66,13.649,29.5]
[1672829590148,46.5126,13.66,13.649,84.5]
[1672829590871,46.5126,13.66,13.649,29.5]
[1672829591859,46.5126,13.66,13.65,54.99]
[1672829592166,46.5126,13.66,13.649,29.5]
[1672829592167,30.0,13.658,13.649,29.5]
[1672829595004,84.96,13.659,13.649,29.5]
[1672829595406,54.96,13.659,13.649,29.5]
[1672829595608,46.5126,13.66,13.649,29.5]
[1672829596049,46.5126,13.66,13.651,30.0]
[1672829596258,24.0249,13.671,13.652,54.99]
[1672829596454,30.0,13.663,13.651,51.7811836]
[1672829596893,30.0,13.663,13.651,30.0]
[1672829597420,84.94,13.663,13.651,30.0]
[1672829615795,144.1627,13.664,13.651,30.0]
[1672829615796,169.1027,13.664,13.651,30.0]
[1672829616654,30.0,13.663,13.651,30.0]
[1672829617797,169.1027,13.664,13.652,30.0]
[1672829618025,169.1027,13.664,13.652,60.0]
[1672829619814,169.1027,13.664,13.652,111.87572358]
[1672829621589,169.1027,13.664,13.652,423.87572358]
[1672829622323,47.4619,13.665,13.654,30.0]
[1672829622536,47.4619,13.665,13.655,45.73233428]
[1672829622744,47.4619,13.665,13.657,30.0]
[1672829623082,114.2538,13.67,13.659,30.0]
[1672829623478,114.2538,13.67,13.659,60.0]
[1672829623689,114.2538,13.67,13.661,30.0]
[1672829624550,114.2538,13.67,13.661,60.0]
[1672829625071,114.2538,13.67,13.661,30.0]
[1672829625916,30.0,13.669,13.661,30.0]
[1672829626119,114.2538,13.67,13.661,30.0]
[1672829626433,30.0,13.669,13.661,30.0]
[1672829628209,84.92,13.669,13.661,30.0]
[1672829628628,30.0,13.667,13.661,30.0]
[1672829628832,84.92,13.667,13.661,30.0]
[1672829629051,30.0,13.667,13.661,30.0]
[1672829630962,113.2538,13.67,13.661,30.0]
[1672829633354,3.77077258,13.659,13.658,30.0]
[1672829633566,0.00077258,13.659,13.658,20.0]
[1672829633797,30.0,13.669,13.658,41.7811836]
[1672829636218,30.0,13.669,13.658,353.7811836]
[1672829636426,113.2538,13.67,13.659,42.28857878]
[1672829636826,113.2538,13.67,13.658,353.7811836]
[1672829637051,113.2538,13.67,13.659,72.38202028]
[1672829637578,113.2538,13.67,13.658,41.7811836]
[1672829639771,30.0,13.669,13.658,20.0]
[1672829639980,30.0,13.669,13.657,20.0]
[1672829640191,168.1638,13.67,13.658,312.0]
[1672829640398,168.1638,13.67,13.659,30.0]
[1672829640607,113.2538,13.67,13.66,43.37478848]
[1672829641041,113.2538,13.67,13.658,333.7811836]
[1672829641252,113.2538,13.67,13.659,72.92847327]
[1672829641452,113.2538,13.67,13.659,94.70965687]
[1672829642833,113.2538,13.67,13.66,78.59690718]
[1672829643150,113.2538,13.67,13.661,97.4309632]
[1672829643545,113.2538,13.67,13.663,46.28557354]
[1672829643761,311.6359,13.674,13.663,46.28557354]
[1672829644188,311.6359,13.674,13.662,69.9211836]
[1672829644405,311.6359,13.674,13.663,30.0]
[1672829644406,30.0,13.673,13.663,30.0]
[1672829646816,54.9,13.673,13.663,30.0]
[1672829647029,366.5359,13.674,13.663,30.0]
[1672829647249,366.5359,13.674,13.663,342.0]
[1672829647456,30.0,13.673,13.663,342.0]
[1672829647662,366.5359,13.674,13.663,342.0]
[1672829648501,311.6359,13.674,13.663,363.7811836]
[1672829648924,311.6359,13.674,13.663,342.0]
[1672829649133,311.6359,13.674,13.664,43.87574666]
[1672829649451,311.6359,13.674,13.664,30.0]
[1672829650201,30.0,13.673,13.664,30.0]
[1672829650610,366.5359,13.674,13.664,30.0]
[1672829651240,30.0,13.673,13.664,30.0]
[1672829656583,132.8359,13.674,13.664,30.0]
[1672829656800,102.8359,13.674,13.665,30.0]
[1672829657015,47.9359,13.674,13.665,30.0]
[1672829657764,47.9359,13.674,13.666,30.0]
[1672829657970,24.3319,13.676,13.666,30.0]
[1672829657971,54.88,13.678,13.666,60.0]
[1672829658188,117.336,13.68,13.667,119.09663855]
[1672829658391,117.336,13.68,13.668,30.0]
[1672829658600,117.336,13.68,13.67,50.36663855]
[1672829658813,117.336,13.68,13.669,54.92]
[1672829658814,117.336,13.68,13.671,30.0]
[1672829659013,117.336,13.68,13.671,60.0]
[1672829660486,54.85,13.686,13.672,30.0]
[1672829660700,117.336,13.69,13.674,30.0]
[1672829660924,117.336,13.69,13.676,312.0]
[1672829661238,117.336,13.69,13.679,66.83779928]
[1672829661444,117.336,13.69,13.681,66.83779928]
[1672829661848,117.336,13.69,13.683,66.83779928]
[1672829662060,22.949,13.692,13.683,66.83779928]
[1672829662282,169.6158,13.694,13.685,66.83779928]
[1672829662688,169.6158,13.694,13.685,96.83779928]
[1672829663968,114.7958,13.694,13.685,96.83779928]
[1672829664904,30.0,13.692,13.685,96.83779928]
[1672829665110,30.0,13.692,13.685,30.0]
[1672829665953,54.83,13.691,13.685,30.0]
[1672829666164,54.82,13.692,13.685,30.0]
[1672829666493,30.0,13.691,13.685,30.0]
[1672829666913,30.0,13.692,13.685,30.0]
[1672829669206,84.82,13.693,13.685,30.0]
[1672829669423,30.0,13.692,13.685,30.0]
[1672829670680,30.0,13.69,13.685,30.0]
[1672829670895,30.0,13.69,13.679,66.83779928]
[1672829670896,78.04001351,13.684,13.679,66.83779928]
[1672829671211,78.04001351,13.684,13.67,109.6941]
[1672829671212,54.86,13.683,13.67,109.6941]
[1672829671430,15.25,13.68,13.665,23.3709]
[1672829671734,213.6259,13.683,13.671,21.7811836]
[1672829671949,158.7659,13.683,13.674,30.0]
[1672829672694,158.7659,13.683,13.674,51.7811836]
[1672829672897,158.7659,13.683,13.674,30.0]
[1672829673526,158.7659,13.683,13.675,21.7811836]
[1672829673735,158.7659,13.683,13.678,30.0]
[1672829673945,78.04001351,13.684,13.678,30.0]
[1672829675414,30.0,13.683,13.678,30.0]
[1672829676990,78.04001351,13.684,13.678,30.0]
[1672829678681,30.0,13.683,13.678,30.0]
[1672829679738,132.90001351,13.684,13.678,30.0]
[1672829681322,30.0,13.683,13.678,30.0]
[1672829683636,84.86,13.683,13.678,30.0]
[1672829685643,30.0,13.683,13.678,30.0]
[1672829686062,29.5,13.683,13.678,30.0]
[1672829693000,70.39979635,13.683,13.678,30.0]
[1672829695849,155.62593701,13.683,13.678,30.0]
[1672829696567,30.0,13.681,13.678,30.0]
[1672829696996,30.0,13.679,13.678,30.0]
[1672829697413,70.41683152,13.679,13.678,30.0]
[1672829698043,115.22614066,13.679,13.678,30.0]
[1672829698581,115.22614066,13.679,13.648,23.7455]
[1672829698582,30.0,13.671,13.648,23.7455]
[1672829698769,70.16,13.67,13.651,114.7669]
[1672829698979,50.0,13.669,13.651,114.7669]
[1672829699189,30.0,13.667,13.651,114.7669]
[1672829699506,30.0,13.665,13.651,114.7669]
[1672829699731,20.0,13.664,13.649,21.7811836]
[1672829700451,30.0,13.663,13.649,333.7811836]
[1672829701205,144.7167,13.663,13.649,333.7811836]
[1672829702860,144.7167,13.663,13.65,21.7811836]
[1672829703614,144.7167,13.663,13.652,30.0]
[1672829703826,144.7167,13.663,13.653,2.181]
[1672829704442,144.7167,13.663,13.654,30.0]
[1672829707300,144.7167,13.663,13.655,30.0]
[1672829708239,144.7167,13.663,13.656,30.0]
[1672829708460,30.0,13.663,13.656,30.0]
[1672829708861,50.0,13.664,13.656,30.0]
[1672829709295,50.0,13.664,13.657,30.0]
[1672829709722,104.94,13.664,13.657,30.0]
[1672829710233,20.0,13.664,13.657,30.0]
[1672829710455,20.0,13.664,13.659,30.0]
[1672829711491,30.0,13.663,13.659,30.0]
[1672829713400,30.0,13.663,13.66,30.0]
[1672829718431,42.58685535,13.663,13.66,30.0]
[1672829718650,42.58685535,13.663,13.66,24.05]
[1672829721368,87.36677402,13.663,13.662,30.0]
[1672829721583,137.98274982,13.663,13.662,30.0]
[1672829721789,188.73620201,13.663,13.662,30.0]
[1672829726309,138.12022621,13.663,13.662,30.0]
[1672829727999,183.34466868,13.663,13.662,30.0]
[1672829728214,132.59121649,13.663,13.662,30.0]
[1672829729689,87.36677402,13.663,13.662,30.0]
[1672829737475,177.92973535,13.663,13.662,30.0]
[1672829737685,177.92973535,13.663,13.653,23.8199]
[1672829737886,177.92973535,13.663,13.662,30.0]
[1672829738420,177.92973535,13.663,13.624,104.93090163]
[1672829738421,30.0,13.657,13.623,30.0]
[1672829738611,74.97,13.656,13.637,160.7973]
[1672829738823,30.0,13.655,13.638,30.0]
[1672829739048,30.0,13.653,13.638,30.0]
[1672829739251,30.0,13.653,13.637,160.7973]
[1672829739252,30.0,13.653,13.639,19.38]
[1672829739453,30.0,13.653,13.637,160.7973]
[1672829739668,30.0,13.651,13.637,160.7973]
[1672829740088,30.0,13.649,13.637,160.7973]
[1672829741558,78.15637657,13.649,13.637,160.7973]
[1672829743452,78.15637657,13.649,13.638,19.83]
[1672829743984,30.0,13.648,13.638,19.83]
[1672829745031,75.01,13.647,13.632,42.3547]
[1672829745242,75.01,13.647,13.633,47.6489]
[1672829745243,30.0,13.646,13.633,47.6489]
[1672829745453,30.0,13.644,13.633,47.6489]
[1672829746071,75.55637657,13.644,13.633,47.6489]
[1672829748401,30.0,13.642,13.633,47.6489]
[1672829748925,30.0,13.642,13.619,30.0]
[1672829748926,81.12351886,13.644,13.642,17.41314465]
[1672829749118,81.12351886,13.644,13.62,20.09]
[1672829749119,102.15594915,13.641,13.623,156.2869]
[1672829749331,151.09,13.64,13.623,156.2869]
[1672829749583,30.0,13.639,13.623,156.2869]
[1672829749893,105.04,13.638,13.637,30.0]
[1672829750085,30.0,13.637,13.623,156.2869]
[1672829750295,30.0,13.635,13.623,156.2869]
[1672829750504,30.0,13.633,13.623,46.8158]
[1672829750731,20.0,13.636,13.623,46.8158]
[1672829750732,55.07,13.632,13.623,46.8158]
[1672829750945,293.7,13.637,13.632,30.0]
[1672829750946,55.05,13.635,13.632,30.0]
[1672829751144,20.0,13.634,13.632,30.0]
[1672829751357,263.7,13.637,13.632,30.0]
[1672829751569,263.7,13.653,13.634,30.0]
[1672829751779,263.7,13.653,13.635,19.92]
[1672829751780,30.0,13.652,13.635,19.92]
[1672829751988,30.0,13.652,13.636,20.0]
[1672829752308,30.0,13.652,13.637,19.92]
[1672829753038,30.0,13.652,13.638,30.0]
[1672829753251,41.89488604,13.652,13.639,19.91]
[1672829753775,30.0,13.649,13.638,30.0]
[1672829753993,75.0,13.648,13.64,30.0]
[1672829754179,30.0,13.647,13.64,30.0]
[1672829754391,30.0,13.645,13.64,30.0]
[1672829754606,20.0,13.644,13.64,30.0]
[1672829754918,30.0,13.643,13.641,30.0]
[1672829755986,30.0,13.643,13.642,30.0]
[1672829757021,75.02,13.644,13.643,30.0]
[1672829757564,86.91488604,13.644,13.643,30.0]
[1672829758090,30.0,13.643,13.634,117.5659]
[1672829758301,15.28,13.64,13.625,30.07]
[1672829758494,30.0,13.639,13.623,117.5659]
[1672829758827,30.0,13.639,13.615,69.2888]
[1672829758828,30.0,13.637,13.624,30.08]
[1672829759141,30.0,13.635,13.617,30.09]
[1672829759338,75.06,13.634,13.617,30.09]
[1672829759563,30.0,13.633,13.617,30.09]
[1672829761664,30.0,13.633,13.617,60.09]
[1672829762086,30.0,13.633,13.617,30.09]
[1672829762401,30.0,13.633,13.617,60.09]
[1672829762617,30.0,13.633,13.617,30.09]
[1672829763243,30.0,13.633,13.617,60.09]
[1672829763770,30.0,13.633,13.618,30.0]
[1672829763976,50.0,13.634,13.619,55.12]
[1672829764168,50.0,13.634,13.633,30.0]
[1672829764381,20.0,13.634,13.633,30.0]
[1672829765134,30.0,13.635,13.634,10.0]
[1672829766292,55.05,13.636,13.635,30.0]
[1672829766692,66.94488604,13.636,13.635,30.0]
[1672829767111,45.05,13.636,13.635,30.0]
[1672829767321,75.05,13.636,13.635,30.0]
[1672829767547,20.0,13.636,13.635,30.0]
[1672829768583,50.0,13.636,13.635,30.0]
[1672829769424,61.89488604,13.636,13.635,30.0]
[1672829772162,1.89488604,13.636,13.634,10.0]
[1672829772367,31.89488604,13.636,13.634,10.0]
[1672829774275,20.0,13.635,13.634,10.0]
[1672829775521,112.9773,13.642,13.634,10.0]
[1672829776362,30.0,13.639,13.634,10.0]
[1672829776689,30.0,13.637,13.634,10.0]
[1672829777016,41.34533204,13.637,13.634,10.0]
[1672829777221,55.05,13.636,13.634,10.0]
[1672829777436,50.0,13.635,13.634,10.0]
[1672829783006,105.05,13.635,13.634,10.0]
[1672829783193,116.39533204,13.635,13.634,10.0]
[1672829783408,116.39533204,13.635,13.615,55.13]
[1672829783409,30.0,13.632,13.615,55.13]
[1672829783619,15.31,13.63,13.616,116.7568]
[1672829783841,105.08,13.629,13.616,116.7568]
[1672829786361,55.08,13.629,13.616,116.7568]
[1672829786577,25.05558124,13.633,13.617,85.13]
[1672829787729,30.0,13.632,13.617,85.13]
[1672829787949,25.05558124,13.633,13.617,85.13]
[1672829788273,30.0,13.632,13.617,85.13]
[1672829789740,55.05558124,13.633,13.617,85.13]
[1672829790140,25.05558124,13.633,13.617,85.13]
[1672829792239,25.05558124,13.633,13.619,30.0]
[1672829792455,25.05558124,13.633,13.62,55.11]
[1672829792669,25.05558124,13.633,13.621,30.0]
[1672829792880,25.05558124,13.633,13.623,30.0]
[1672829793102,25.05558124,13.633,13.624,55.1]
[1672829793429,25.05558124,13.633,13.625,30.0]
[1672829793627,25.05558124,13.633,13.626,55.09]
[1672829794354,25.05558124,13.633,13.624,55.1]
[1672829794992,25.05558124,13.633,13.623,55.1]
[1672829795717,25.05558124,13.633,13.624,30.0]
[1672829795937,25.05558124,13.633,13.625,55.09]
[1672829796469,25.05558124,13.633,13.624,55.1]
[1672829798477,25.05558124,13.633,13.625,30.0]
[1672829798669,25.05558124,13.633,13.626,55.09]
[1672829798878,25.05558124,13.633,13.627,30.0]
[1672829800367,662.9,13.643,13.629,30.0]
[1672829800559,662.9,13.643,13.63,55.07]
[1672829800770,662.9,13.643,13.631,30.0]
[1672829800981,55.03,13.642,13.631,30.0]
[1672829802989,662.9,13.643,13.631,30.0]
[1672829803209,662.9,13.643,13.633,30.0]
[1672829803396,662.9,13.643,13.634,55.06]
[1672829803607,662.9,13.643,13.634,104.81471674]
[1672829803816,662.9,13.643,13.635,49.75471674]
[1672829804038,263.7,13.643,13.635,49.75471674]
[1672829804668,263.7,13.643,13.634,55.06]
[1672829804986,263.7,13.643,13.633,55.06]
[1672829805603,30.0,13.642,13.633,55.06]
[1672829806859,263.7,13.643,13.633,55.06]
[1672829811942,30.0,13.642,13.633,55.06]
[1672829812258,263.7,13.643,13.633,55.06]
[1672829812772,30.0,13.642,13.632,23.4732]
[1672829815187,30.0,13.64,13.632,23.4732]
[1672829815510,30.0,13.638,13.632,23.4732]
[1672829815729,30.0,13.638,13.628,131.5069]
[1672829821288,30.0,13.64,13.628,131.5069]
[1672829821509,30.0,13.64,13.629,76.8611836]
[1672829821721,55.03,13.641,13.629,76.8611836]
[1672829822035,85.03,13.642,13.629,76.8611836]
[1672829822446,85.03,13.642,13.629,412.1802836]
[1672829822867,55.03,13.642,13.631,30.0]
[1672829823070,85.02,13.643,13.632,55.07]
[1672829823294,30.0,13.643,13.632,55.07]
[1672829823829,163.6735,13.644,13.632,55.07]
[1672829824451,108.6535,13.644,13.633,30.0]
[1672829824650,108.6535,13.644,13.634,55.06]
[1672829824987,108.6535,13.644,13.633,51.7811836]
[1672829825175,108.6535,13.644,13.634,55.06]
[1672829825388,108.6535,13.644,13.635,30.0]
[1672829825610,108.6535,13.644,13.636,55.05]
[1672829825804,108.6535,13.644,13.637,30.0]
[1672829826013,55.0,13.648,13.637,30.0]
[1672829826248,20.0,13.646,13.637,30.0]
[1672829826436,117.6375,13.649,13.639,30.0]
[1672829826645,117.6375,13.649,13.64,97.0566635]
[1672829826972,117.6375,13.649,13.643,43.81592172]
[1672829827170,54.97,13.655,13.645,44.64478877]
[1672829827379,54.97,13.655,13.646,30.0]
[1672829827817,54.97,13.655,13.647,30.0]
[1672829828134,47.4945,13.656,13.647,30.0]
[1672829828325,54.97,13.657,13.647,30.0]
[1672829828528,20.0,13.656,13.648,43.3209678]
[1672829828739,50.0,13.656,13.649,30.0]
[1672829828969,54.97,13.655,13.649,30.0]
[1672829829807,30.0,13.654,13.65,30.0]
[1672829830856,30.0,13.654,13.651,30.0]
[1672829831815,54.98,13.653,13.651,30.0]
[1672829832011,54.98,13.653,13.652,30.0]
[1672829832875,24.98,13.653,13.642,162.0154]
[1672829833087,30.0,13.652,13.642,162.0154]
[1672829835163,30.0,13.652,13.643,55.02]
[1672829836119,54.98,13.654,13.643,55.02]
[1672829836332,123.7311,13.656,13.644,30.0]
[1672829836539,68.7611,13.656,13.645,55.01]
[1672829836754,68.7611,13.656,13.643,55.02]
[1672829836969,68.7611,13.656,13.644,42.2953608]
[1672829837164,68.7611,13.656,13.645,55.01]
[1672829837495,68.7611,13.656,13.646,42.99814204]
[1672829837704,123.7311,13.656,13.645,43.83538073]
[1672829837900,68.7611,13.656,13.646,55.01]
[1672829838114,68.7611,13.656,13.644,55.02]
[1672829838339,68.7611,13.656,13.645,42.32385801]
[1672829838539,68.7611,13.656,13.646,55.01]
[1672829838735,30.0,13.655,13.644,55.02]
[1672829838949,30.0,13.655,13.642,162.0154]
[1672829838950,15.24,13.65,13.642,162.0154]
[1672829839168,15.24,13.65,13.642,49.1779]
[1672829839169,85.0,13.649,13.642,49.1779]
[1672829839497,30.0,13.648,13.642,49.1779]
[1672829839683,30.0,13.648,13.635,99.88644382]
[1672829839894,30.0,13.648,13.636,20.0]
[1672829840103,30.0,13.648,13.637,55.05]
[1672829840319,55.0,13.649,13.637,55.05]
[1672829840746,55.0,13.649,13.638,43.06286686]
[1672829840961,30.0,13.648,13.638,43.06286686]
[1672829841277,30.0,13.648,13.637,78.5048]
[1672829841477,30.0,13.648,13.638,42.7732021]
[1672829841905,30.0,13.648,13.637,78.5048]
[1672829842527,30.0,13.648,13.638,43.50876389]
[1672829842943,30.0,13.648,13.637,78.5048]
[1672829845264,11.34533204,13.647,13.637,55.05]
[1672829845587,11.34533204,13.647,13.634,114.9034]
[1672829845588,20.0,13.646,13.635,55.05]
[1672829845793,30.0,13.645,13.635,55.05]
[1672829847591,20.0,13.644,13.635,55.05]
[1672829849357,20.0,13.644,13.634,114.9034]
[1672829849575,30.0,13.643,13.634,114.9034]
[1672829853042,30.0,13.643,13.635,55.05]
[1672829855865,30.0,13.643,13.634,114.9034]
[1672829858075,30.0,13.643,13.635,55.05]
[1672829858301,30.0,13.643,13.634,114.9034]
[1672829859869,30.0,13.643,13.635,55.05]
[1672829860287,20.0,13.644,13.635,55.05]
[1672829863751,30.0,13.643,13.635,55.05]
[1672829863962,30.0,13.643,13.634,114.9034]
[1672829869446,20.0,13.644,13.634,114.9034]
[1672829869643,20.0,13.644,13.635,55.05]
[1672829874579,20.0,13.646,13.635,55.05]
[1672829874785,196.8158,13.651,13.636,30.0]
[1672829874995,141.8258,13.651,13.637,55.05]
[1672829875221,141.8258,13.651,13.639,30.0]
[1672829875426,141.8258,13.651,13.64,107.83639797]
[1672829877530,30.0,13.65,13.64,107.83639797]
[1672829878274,141.8258,13.651,13.64,107.83639797]
[1672829878793,30.0,13.65,13.64,107.83639797]
[1672829879011,141.8258,13.651,13.64,107.83639797]
[1672829879529,141.8258,13.651,13.64,55.03]
[1672829880164,30.0,13.65,13.64,55.03]
[1672829882455,141.8258,13.651,13.64,55.03]
[1672829882660,141.8258,13.651,13.641,49.56099045]
[1672829882879,141.8258,13.651,13.643,53.33650575]
[1672829883209,54.95,13.66,13.645,53.33650575]
[1672829883525,116.7212,13.662,13.646,105.01]
[1672829883747,116.7212,13.662,13.648,30.0]
[1672829884056,116.7212,13.662,13.649,153.38129425]
[1672829884369,116.7212,13.662,13.651,75.71589425]
[1672829884565,116.7212,13.662,13.651,130.70589425]
[1672829884898,116.7212,13.662,13.652,30.0]
[1672829885106,116.7212,13.662,13.653,75.71589425]
[1672829885422,116.7212,13.662,13.654,30.0]
[1672829885617,116.7212,13.662,13.655,75.71589425]
[1672829886364,54.94,13.663,13.657,75.71589425]
[1672829886787,30.0,13.665,13.657,75.71589425]
[1672829887098,74.94,13.664,13.657,75.71589425]
[1672829887304,74.94,13.664,13.658,30.0]
[1672829887923,74.94,13.664,13.659,75.71589425]
[1672829888250,20.0,13.664,13.66,30.0]
[1672829888471,20.0,13.664,13.661,75.71589425]
[1672829888658,20.0,13.664,13.66,30.0]
[1672829888869,20.0,13.664,13.661,75.71589425]
[1672829889416,20.0,13.664,13.662,30.0]
[1672829890466,20.0,13.664,13.663,30.0]
[1672829890869,20.0,13.664,13.663,105.71589425]
[1672829891399,54.93,13.665,13.664,85.71589425]
[1672829892370,54.92,13.668,13.665,30.0]
[1672829892587,66.26533204,13.668,13.665,30.0]
[1672829892994,66.26533204,13.668,13.666,75.71589425]
[1672829893214,20.0,13.667,13.666,75.71589425]
[1672829893414,66.26533204,13.668,13.667,10.0]
[1672829894483,66.26533204,13.668,13.664,6.83823446]
[1672829894669,11.34533204,13.667,13.664,6.83823446]
[1672829894880,84.93,13.666,13.664,6.83823446]
[1672829895202,20.0,13.665,13.664,6.83823446]
[1672829912028,31.34533204,13.665,13.664,6.83823446]
[1672829912341,86.27533204,13.665,13.664,6.83823446]
[1672829912746,61.34533204,13.665,13.664,6.83823446]
[1672829912955,50.0,13.665,13.664,6.83823446]
[1672829916666,20.0,13.665,13.664,6.83823446]
[1672829916863,109.5678,13.673,13.664,6.83823446]
[1672829917076,109.5678,13.673,13.666,30.0]
[1672829917596,109.5678,13.673,13.667,54.93]
[1672829918021,109.5678,13.673,13.668,30.0]
[1672829918228,46.1462,13.675,13.669,30.0]
[1672829918439,11.34533204,13.678,13.669,30.0]
[1672829918660,20.0,13.677,13.669,30.0]
[1672829919082,31.34533204,13.677,13.669,30.0]
[1672829919290,31.34533204,13.677,13.67,30.0]
[1672829920241,31.34533204,13.677,13.671,30.0]
[1672829920762,20.0,13.677,13.671,30.0]
[1672829920960,20.0,13.678,13.671,30.0]
[1672829921169,20.0,13.678,13.672,30.0]
[1672829922234,20.0,13.678,13.673,30.0]
[1672829922430,11.03291325,13.677,13.673,30.0]
[1672829922639,20.0,13.676,13.673,30.0]
[1672829922858,70.447612,13.676,13.673,30.0]
[1672829923705,30.0,13.675,13.673,30.0]
[1672829924427,91.48052525,13.675,13.673,30.0]
[1672829924647,146.37052525,13.675,13.673,30.0]
[1672829926651,188.80917722,13.675,13.673,30.0]
[1672829926864,32.49375315,13.672,13.664,6.83823446]
[1672829927079,75.99,13.67,13.664,6.83823446]
[1672829927391,30.0,13.668,13.664,6.83823446]
[1672829927607,30.0,13.666,13.664,6.83823446]
[1672829927821,54.93,13.665,13.664,6.83823446]
[1672829928015,85.96291325,13.665,13.664,6.83823446]
[1672829928341,143.10795191,13.665,13.664,6.83823446]
[1672829928562,88.17795191,13.665,13.664,6.83823446]
[1672829929072,20.0,13.665,13.664,6.83823446]
[1672829945152,31.03291325,13.665,13.664,6.83823446]
[1672829946327,20.0,13.665,13.664,6.83823446]
[1672829946848,31.03291325,13.665,13.664,6.83823446]
[1672829947062,20.0,13.665,13.664,6.83823446]
[1672829948442,77.14503866,13.665,13.664,6.83823446]
[1672829948615,88.17795191,13.665,13.664,6.83823446]
[1672829948825,118.17795191,13.665,13.664,6.83823446]
[1672829953564,88.17795191,13.665,13.664,6.83823446]
[1672829960604,143.10795191,13.665,13.664,6.83823446]
[1672829960834,132.07503866,13.665,13.664,6.83823446]
[1672829963552,77.14503866,13.665,13.664,6.83823446]
[1672829965158,205.65237076,13.665,13.664,6.83823446]
[1672829965339,205.65237076,13.665,13.648,138.9292]
[1672829965340,13.9654621,13.659,13.648,138.9292]
[1672829965553,30.0,13.657,13.648,138.9292]
[1672829965757,74.97,13.656,13.648,138.9292]
[1672829965982,30.0,13.655,13.648,138.9292]
[1672829966290,54.98,13.654,13.648,24.095]
[1672829966508,30.0,13.653,13.648,24.095]
[1672829966704,41.03291325,13.653,13.646,24.2938]
[1672829967029,93.22781191,13.653,13.646,24.2938]
[1672829967852,175.45172132,13.653,13.646,24.2938]
[1672829968068,30.0,13.651,13.646,24.2938]